Cogmind - Beta 12 @@@ ROGUE MODE // 2023.09.16 @ 22:44:34 Player: Roadie Result: Destroyed by S-10 Pest with Light Assault Rifle Performance ------------- Evolutions (1) 500 Regions Visited (3) 600 Robots Destroyed (29) 145 Value Destroyed (999) 999 Prototype IDs (1) 20 Alien Tech Used (0) 0 Bonus (0) 0 TOTAL SCORE: 2264 Bonus ------- None Cogmind --------- Core Integrity 0/400 Matter 252/300 Energy 270/275 System Corruption 1% Temperature Cool (32) Movement Walking (330) Ox3 Location -9/Storage Parts ------- > --- POWER (1) -------- Deuterium Engine (fused) > --- PROPULSION (4) --- Aluminum Leg > --- UTILITY (2) ------ Medium Storage Unit Drone Bay (2/2) > --- WEAPON (2) ------- Ion Cannon Light Assault Rifle > --- INVENTORY (10) --- Deuterium Engine Sensor Array Drone Bay (2/2) Drone Bay (2/2) Drone Bay (2/2) Drone Bay (2/2) Drone Bay (2/2) Drone Bay (2/2) Drone Bay (2/2) Light Assault Rifle Peak State ------------ > --- POWER ------------ Deuterium Engine > --- PROPULSION ------- Aluminum Leg > --- UTILITY ---------- Medium Storage Unit Drone Bay > --- WEAPON ----------- Ion Cannon Light Assault Rifle > --- INVENTORY -------- Deuterium Engine Sensor Array Drone Bay Drone Bay Drone Bay Drone Bay Drone Bay Drone Bay Drone Bay Light Assault Rifle [Rating: 18] Favorites ----------- Power Deuterium Engine Engine Deuterium Engine Propulsion Aluminum Leg Leg Aluminum Leg Utility Medium Storage Unit Device Sensor Array Storage Medium Storage Unit Protection Medium Armor Plating Weapon Light Assault Rifle Energy Cannon Ion Cannon Ballistic Gun Light Assault Rifle Launcher Grenade Launcher Impact Weapon Maul Build | -11 -10 -9 -9 ------- Run | Jun Mat Mat Sto Slots Evolved 2 | . . 2 . Power . | . . . . Propulsion 2 | . . 2 . Utility . | . . . . Weapon . | . . . . Parts Attached 52 | 6 8 27 11 Power 4 | 1 . 2 1 Engine 4 | 1 . 2 1 Core . | . . . . Reactor . | . . . . Propulsion 14 | 2 3 7 2 Treads . | . . . . Leg 14 | 2 3 7 2 Wheel . | . . . . Hover . | . . . . Flight . | . . . . Utility 9 | 1 2 5 1 Device 4 | . 1 2 1 Storage 2 | 1 1 . . Processor . | . . . . Hackware . | . . . . Protection 3 | . . 3 . Artifact . | . . . . Weapon 25 | 2 3 13 7 Energy Gun . | . . . . Energy Cannon 5 | . . 2 3 Ballistic Gun 16 | 2 3 8 3 Ballistic Cannon . | . . . . Launcher 3 | . . 3 . Special Weapon . | . . . . Impact Weapon 1 | . . . 1 Slashing Weapon . | . . . . Piercing Weapon . | . . . . Special Melee Weapon . | . . . . Unidentified Prototypes 1 | . . 1 . Parts Lost 11 | . . 7 4 Power 1 | . . . 1 Propulsion 6 | . . 4 2 Utility 2 | . . 2 . Weapon 2 | . . 1 1 Highest Loss Streak 5 | . . 5 3 To Critical Strikes . | . . . . Average Slot Usage (%) 80 | . 94 92 60 Engine 10 | . 14 11 8 Leg 24 | . 28 38 8 Device 7 | . 8 3 11 Storage 11 | . 14 11 11 Protection 2 | . . 6 . Energy Cannon 1 | . . 1 2 Ballistic Gun 19 | . 28 19 16 Naked Turns . | . . . . Heaviest Build 33 | 13 20 33 32 Greatest Support 40 | 20 20 40 23 Greatest Overweight (x) 10 | 3 . 2 10 Average Overweight (x) . | . . . 3 Largest Inventory Capacity 10 | 8 10 10 10 Average Capacity 9 | 7 9 10 10 Most Carried 10 | 6 10 10 10 Average Carried 8 | 3 7 8 9 Final Capacity 10 | 8 10 10 10 Final Carried 10 | 3 10 9 10 Class Distribution -------------------- 70% | Mutant 29% | Scavenger-Mutant Dominant Class ---------------- Mutant | -10/Materials Scavenger-Mutant | -9/Materials Mutant | -9/Storage Resources | -11 -10 -9 -9 ----------- Run | Jun Mat Mat Sto Matter Collected 1176 | 212 178 472 314 Remotely . | . . . . Salvage Created 1006 | . 211 520 275 Parts 72 | . 18 40 14 Haulers Intercepted . | . . . . Recyclers Shooed 3 | . . 2 1 Parts Field Recycled . | . . . . Retrieved Matter . | . . . . Parts Self-Destructed . | . . . . Prevented . | . . . . Kills | -11 -10 -9 -9 ------- Run | Jun Mat Mat Sto Combat Hostiles Destroyed 23 | . 5 12 6 Guns 17 | . 5 7 5 Cannons 4 | . . 3 1 AOE 2 | . . 2 . Classes Destroyed 6 | . 2 4 . Builder 1 | . . 1 . Watcher 5 | . 1 3 1 Grunt 14 | . 5 6 3 Brawler 1 | . . 1 . Duelist 1 | . . 1 . Sentry 7 | . . 4 3 Best Kill Streak 4 | . 2 4 2 Combat Bots Only 3 | . 2 3 2 Max Kills in Single Turn 1 | . 1 1 1 Gunslinging . | . . . . Exploded 1 | . . 1 . Melee . | . . . . Uniques/NPCs Destroyed . | . . . . Combat | -11 -10 -9 -9 -------- Run | Jun Mat Mat Sto Damage Taken 2411 | . 187 1365 859 Core 422 | . 22 178 222 Absorbed by Shields . | . . . . Core Remaining (%) 95 | 100 91 . . Volleys Fired 96 | . 20 45 31 Largest 2 | . 2 2 2 Hottest 120 | . 40 83 120 Shots Fired 181 | . 40 90 51 Gun 148 | . 40 67 41 Cannon 23 | . . 13 10 Launcher 10 | . . 10 . Special . | . . . . Kinetic 148 | . 40 67 41 Thermal 23 | . . 13 10 Explosive 10 | . . 10 . Electromagnetic . | . . . . Robot Hit Streak 23 | . 8 7 23 Robot Miss Streak 5 | . 5 4 2 Penetration Max . | . . . . Secondary Targets 3 | . 2 1 . Max Gunslinging Chain 1 | . 1 1 . Shots Hit Robots 122 | . 23 54 45 Core Hits 50 | . 9 28 13 Critical Kills . | . . . . Critical Parts Destroyed 3 | . 1 . 2 Critical Strikes 3 | . 1 . 2 Destroy 2 | . 1 . 1 Smash 1 | . . . 1 Melee Attacks 7 | . . . 7 Impact 7 | . . . 7 Slashing . | . . . . Piercing . | . . . . Sneak Attacks . | . . . . Combat Hostiles . | . . . . Follow-up Attacks . | . . . . Damage Inflicted 2390 | . 229 1407 754 Guns 1407 | . 229 709 469 Cannons 274 | . . 136 138 Explosions 562 | . . 562 . Melee 147 | . . . 147 Ramming . | . . . . Kinetic 1407 | . 229 709 469 Thermal 274 | . . 136 138 Explosive 459 | . . 459 . Electromagnetic 103 | . . 103 . Impact 147 | . . . 147 Slashing . | . . . . Piercing . | . . . . Highest Corruption 1 | . . 1 1 Average Corruption 1 | . . 1 1 Corruption Purged . | . . . . Corruption Blocked . | . . . . Effects 12 | . . 3 9 Message Errors 1 | . . 1 . Matter Fused 4 | . . . 4 Energy Discharges 1 | . . . 1 Parts Fused 2 | . . 1 1 Data Loss (minor) 3 | . . . 3 Data Loss (major) 1 | . . 1 . Overload Shots . | . . . . Overflow Damage 44 | . . 4 40 Projectiles 16 | . . . 16 Explosions 4 | . . 4 . Melee 24 | . . . 24 Knockbacks . | . . . . Impact . | . . . . Kinetic . | . . . . Secondary . | . . . . Self-Inflicted Damage . | . . . . Shots . | . . . . Rammed . | . . . . Targets Rammed . | . . . . Kicked . | . . . . Crushed . | . . . . Highest Temperature 180 | . 6 180 156 Average Temperature 55 | . 6 55 61 Received Heat Transfer 1044 | . 102 567 375 Siege Activations . | . . . . Robots Corrupted . | . . . . Combat Hostiles . | . . . . Parts Fried . | . . . . Impact Corruptions 1 | . . . 1 Robots Melted . | . . . . Combat Hostiles . | . . . . Parts Melted . | . . . . Heat Transferred 444 | . . 222 222 Parts Sabotaged . | . . . . Parts Stolen . | . . . . Parts Stripped . | . . . . Power Chain Reactions . | . . . . Missiles Intercepted . | . . . . Alert | -11 -10 -9 -9 ------- Run | Jun Mat Mat Sto Peak Influence 326 | . 172 326 254 Initial 137 | . . 72 137 Average 143 | . 89 173 146 Maximum Alert Level 1 | . . 1 1 Low Security (%) 71 | 100 100 60 69 Level 1 28 | . . 39 30 Level 2 . | . . . . Level 3 . | . . . . Level 4 . | . . . . Level 5 . | . . . . High Security . | . . . . Max Security . | . . . . Squads Dispatched 8 | . 3 3 2 Investigation 2 | . 1 1 . Extermination . | . . . . Reinforcement 6 | . 2 2 2 Assault . | . . . . Garrison . | . . . . Intercept . | . . . . Searches Triggered . | . . . . Construction Impeded . | . . . . Haulers Reinforced . | . . . . Active Scanning Responses . | . . . . Cargo Convoy Interrupts . | . . . . Stealth | -11 -10 -9 -9 --------- Run | Jun Mat Mat Sto Distress Signals 3 | . . 1 2 Communications Jammed . | . . . . Distress Signals . | . . . . Times Spotted 38 | . 10 16 12 Peak Tracking Total 8 | . 4 8 3 Tactical Retreats 2 | . 1 . 1 Traps | -11 -10 -9 -9 ------- Run | Jun Mat Mat Sto Traps Triggered 3 | . 1 2 . Indirectly . | . . . . Trap Hack Attempts . | . . . . Triggered . | . . . . Disarmed . | . . . . Reprogrammed . | . . . . Reused . | . . . . Traps Extracted . | . . . . Installed . | . . . . Triggered . | . . . . Machines | -11 -10 -9 -9 ---------- Run | Jun Mat Mat Sto Machines Disabled 4 | . . 3 1 Max in Single Turn 1 | . . 1 1 Machines Repaired . | . . . . Machines Sabotaged . | . . . . Overloaded Fab Kills . | . . . . Hacking | -11 -10 -9 -9 --------- Run | Jun Mat Mat Sto Machines Accessed 10 | . 2 5 3 Terminals 6 | . . 4 2 Fabricators . | . . . . Repair Stations 3 | . 1 1 1 Recycling Units 1 | . 1 . . Scanalyzers . | . . . . Garrison Access . | . . . . Total Hacks 21 | . 3 14 4 Successful 10 | . 1 8 1 Failed 11 | . 2 6 3 Catastrophic 1 | . . . 1 Database Lockouts . | . . . . Manual . | . . . . Terminals 15 | . . 12 3 Fabricators . | . . . . Repair Stations 5 | . 2 2 1 Recycling Units 1 | . 1 . . Scanalyzers . | . . . . Garrison Access . | . . . . Terminal Hacks 7 | . . 6 1 Record 1 | . . 1 . Open Door 1 | . . . 1 Branch Access Points 1 | . . 1 . Maintenance Status 1 | . . 1 . Recall Investigation 1 | . . 1 . Registered Components 1 | . . 1 . Zone Layout 1 | . . 1 . Fabricator Hacks . | . . . . Repair Station Hacks 2 | . . 2 . Scan Component 1 | . . 1 . Refit 1 | . . 1 . Recycling Unit Hacks 1 | . 1 . . Retrieve Components 1 | . 1 . . Scanalyzer . | . . . . Garrison Access Hacks . | . . . . Unauthorized Hacks . | . . . . Terminals . | . . . . Fabricators . | . . . . Repair Stations . | . . . . Recycling Units . | . . . . Scanalyzers . | . . . . Garrison Access . | . . . . Data Cores Recovered . | . . . . Used . | . . . . Hacking Detections 6 | . 1 3 2 Full Trace Events . | . . . . Feedback Events . | . . . . Feedback Blocked . | . . . . Robot Schematics Acquired . | . . . . Robots Built . | . . . . Authchips . | . . . . Time . | . . . . Total Robot Build Rating . | . . . . Part Schematics Acquired . | . . . . Parts Built . | . . . . Authchips . | . . . . Time . | . . . . Total Part Build Rating . | . . . . Parts Repaired . | . . . . Time . | . . . . Parts Recycled . | . . . . Recycled Matter . | . . . . Retrieved Matter . | . . . . Retrieved Components 3 | . 3 . . Parts Scanalyzed . | . . . . Part Schematics Acquired . | . . . . Parts Damaged . | . . . . Bothacking | -11 -10 -9 -9 ------------ Run | Jun Mat Mat Sto Used RIF Installer . | . . . . Robots Hacked . | . . . . Non-combat . | . . . . Combat . | . . . . Robot Hacks Applied . | . . . . Relay Couplers Released . | . . . . Fabnet Peak Effective % . | . . . . Robots Rewired . | . . . . Allies Hacked . | . . . . Hacks Repelled . | . . . . Allies | -11 -10 -9 -9 -------- Run | Jun Mat Mat Sto Total Allies . | . . . . Largest Group . | . . . . Highest-Rated Group . | . . . . Highest-Rated Ally . | . . . . Total Orders 2 | . . . 2 EXPLORE 2 | . . . 2 Ally Attacks . | . . . . Total Damage . | . . . . Kills . | . . . . Allies Corrupted . | . . . . Allies Melted . | . . . . Intel | -11 -10 -9 -9 ------- Run | Jun Mat Mat Sto Robot Analysis Total . | . . . . Derelict Logs Recovered . | . . . . Drone Launches 4 | . . . 4 Drone Recoveries 4 | . . . 4 Exploration | -11 -10 -9 -9 ------------- Run | Jun Mat Mat Sto Turns Passed 1865 | 68 293 784 720 Spaces Moved 867 | 40 175 464 188 Core 74 | 18 . . 56 Treads . | . . . . Legs 793 | 22 175 464 132 Wheels . | . . . . Hover . | . . . . Flight . | . . . . Fastest Speed 50 | 50 120 120 190 Average Speed 161 | 133 120 127 286 Slowest Speed 550 | 200 120 260 550 Overloaded Moves . | . . . . Propulsion Burnouts . | . . . . Robots Hopped . | . . . . Cave-ins Triggered . | . . . . Exploration Rate (%) 27 | 3 24 48 36 Regions Visited 3 Branch Regions 1 Pre-discovered Areas . | . . . . Known Exits Taken 1 | . . 1 . Unknown Exits Taken 2 | 1 1 . . Scrap Searched . | . . . . Spaces Dug . | . . . . Terrain Destroyed 28 | . . 28 . Melee . | . . . . Projectile 4 | . . 4 . AOE 24 | . . 24 . Terrain Rammed . | . . . . Walls Destroyed . | . . . . Machines Disabled . | . . . . Actions | -11 -10 -9 -9 --------- Run | Jun Mat Mat Sto Total 1158 | 54 223 575 306 Wait 52 | . . . 52 Move 864 | 39 174 463 188 Hop . | . . . . Pick Up 53 | 9 13 21 10 Fast Attach 3 | . 1 . 2 Attach 17 | 6 1 8 2 Detach 1 | . . 1 . Swap 32 | . 6 19 7 Drop 33 | . 8 18 7 Fire 96 | . 20 45 31 Melee 7 | . . . 7 Ram . | . . . . Kick . | . . . . Crush . | . . . . Escape Stasis . | . . . . Rewire . | . . . . Trap . | . . . . Miscellaneous . | . . . . Route ------- -11/Junkyard -10/Materials -9/Materials (discovered 3 exits: *Min x2 / *Sto) -9/Storage History --------- Turn | Location | Event 7 | -11/Junkyard | Discovered new exit (range 15) 69 | -11/Junkyard | Entered Materials 266 | -10/Materials | Discovered new exit (range 16) 339 | -10/Materials | Build established: Mutant 362 | -10/Materials | Entered another Materials area 362 | -9/Materials | Evolved 2 slots: Propulsion x2 570 | -9/Materials | Identified exit to Mines 570 | -9/Materials | Identified exit to Storage 645 | -9/Materials | Build established: Scavenger-Mutant 961 | -9/Materials | Lost 5 parts (2n2u1w) 1146 | -9/Materials | Entered Storage 1187 | -9/Storage | Build established: Mutant 1192 | -9/Storage | Core integrity fell below 50% 1559 | -9/Storage | Core integrity fell below 20% 1608 | -9/Storage | Lost 3 parts (1p1n1w) 1866 | -9/Storage | Destroyed by S-10 Pest with Light Assault Rifle Last Messages --------------- 01704_ Drone retrieved by Drone Bay. 01789_ Acquired 114 matter. 01796_ System corrupted: Deuterium Engine fused. 01813_ Drone released from Drone Bay. 01815_ Drone retrieved by Drone Bay. 01838_ Transport Mainframe disabled. 01841_ G-34 Mercenary destroyed. 01842_ K-01 Serf collects debris. 01847_ G-34 Mercenary destroyed. 01849_ K-01 Serf collects debris. 01852_ System corrupted: Energy discharge (-60). 01852_ K-01 Serf collects debris. 01858_ R-06 Scavenger collects Aluminum Leg. 01859_ K-01 Serf collects debris. 01861_ Acquired Aluminum Leg. 01862_ R-06 Scavenger collects Sml. Laser. 01864_ K-01 Serf collects debris. 01865_ R-06 Scavenger suffers critical hit (Destroy). 01865_ Destroyed Com. Wheel. 01865_ R-06 Scavenger sends out distress signal. Map ----- +----------------------------------------------------+ | ?????????????????????????????????????????????? | | ?????????????????????????????????????????????? | | ?????????????????????????????????????????????? | | ?????????????????????????????????????????????? | | ?????????????????????????????????????????????? | | ???????????????? ??????????????????????????? | | ???????????????? ??????????????????????????? | | ???????????????# ??????????????????????????? | | ???????????????# ??????????????????????????? | | ???????????????# ??????????????????????????? | | ???????????????# ??????????????????????????? | | ???????????????# ??????????????????????????? | | ???????????????# ??????????????????????????? | | ???????????????# #?????????????????????????? | | ???????????????# #?????????????????????????? | | ???????????????# #?????????????????????????? | | ???????????????/ #?????????????????????????? | | ???????????????# ##????????????????????????? | | ???????????????# ????????????????????????? | | ???????????????# ?????????????????????????? | | ???????????????# ?????????????????????????? | | ???????????????# #?????????????????????????? | | ???????????????# #############?????????????? | | ???????????????# #! #?????????????? | | ???????????????# #% [kk #?????????????? | | ???????????????# # @"" """" #?????????????? | | ???????????????# sr """" """" #?????????????? | | ???????????????# # """" """" #?????????????? | | ???????????????# s # """" """" #?????????????? | | ???????????????# # ?????????????? | | ??????????????## #############?????????????? | | ??????????????# #????????????????????????? | | ??????????????# ##################+##????? | | ??????????????# / !#? | | ??????????????# ######## #### #? | | ??????????????# #??????# #????? #? | | ??????????????####"##??????# #??????? #? | | ????????????###### #??????# #?????????" # | | ????????????# !] # #??????# #??????????? ## | | ????????????# #??????# #????????????? #? | | ????????????# #T##??????# #????????######## | | ????????????########???????# #######??# ? | | ???????????????????????????# #??# "??" | | ?????????????????????????######### #??# "???" | | ?????????????????????????# # #### "????" | | ?????????????????????????# ! / / "???"" | | ?????????????????????????# # #### "??"" | | ?????????????????????????# ! # #??# """" | | ?????????????????????????# = # #??# | | ?????????????????????????######### #??#####+## | +----------------------------------------------------+ Best States ------------- Heat Dissipation 38 Energy Generation 14 Energy Capacity 275 Matter Stores 300 Matter Capacity 300 Sight Range 16 Robot Scan Range 14 Terrain Scan Density 10 Armor Coverage 225 Evasion (%) 55 Item Schematics ----------------- None Robot Schematics ------------------ None Fabricated ------------ Nothing Alien Tech Used ----------------- None Achievements -------------- None Challenges ------------ None Game ------ Seed GuidedAlphaMapper Manual? 0 Play Time 00:27:25 Cumulative 12.4 hours Start 2023.09.16 @ 22:18:10 End 2023.09.16 @ 22:44:34 Sessions 1 Manual Loads 0 Difficulty Rogue Special Mode None Game No. 15 Rogue 15 Adventurer 0 Explorer 0 Win Type - Total 0 Types 0/0/0/0/0/0/0/0/0 Lore% 17 Gallery% 17 Achievement% 18 Wizard Run 0 Options --------- ASCII 0 Keyboard 0 Movement Mouse Keybinds 0 Fullscreen 2 Font 24/Terminus Map View 183x50 Tactical HUD 1 Map Filters NONE Filters NONE Steam 1 RUN: f3ccee26-9501-4017-9f86-50f9f778d4bf